bitfinex/quotes_ETHUSD_20230105
["timestamp","ask_amount","ask_price","bid_price","bid_amount"]
[1672879184322,15.9500674,1257.0,1256.7,32.15038626]
[1672879184477,16.01306574,1257.0,1256.7,0.064]
[1672879184847,16.01306574,1257.0,1256.6,19.60734795]
[1672879185066,18.71123704,1257.0,1256.6,27.56506795]
[1672879185635,18.71123704,1257.0,1256.6,19.60734795]
[1672879185963,10.75575704,1257.0,1256.6,27.56532795]
[1672879186153,8.05758574,1257.0,1256.6,27.56532795]
[1672879190390,8.05758574,1257.0,1256.6,19.60734795]
[1672879190723,16.01306574,1257.0,1256.6,19.60734795]
[1672879193876,16.00914434,1257.0,1256.6,19.60734795]
[1672879198192,8.05366434,1257.0,1256.6,19.60734795]
[1672879198393,8.05366434,1257.0,1256.6,27.56532795]
[1672879198925,0.09818434,1257.0,1256.6,34.51765322]
[1672879199113,0.035186,1257.0,1256.7,4.0]
[1672879199302,0.035186,1257.0,1256.8,23.87013]
[1672879200394,0.035186,1257.0,1256.8,15.97742]
[1672879200605,0.035186,1257.0,1256.8,8.02071]
[1672879200816,0.035186,1257.0,1256.8,0.064]
[1672879201034,0.035186,1257.0,1256.7,28.14110532]
[1672879201243,0.035186,1257.0,1256.7,48.18935483]
[1672879201415,0.035186,1257.0,1256.7,56.14647483]
[1672879203192,0.035186,1257.0,1256.8,7.9567]
[1672879203404,0.035186,1257.0,1256.8,13.63530548]
[1672879209319,0.035186,1257.0,1256.8,5.67860548]
[1672879209579,7.990846,1257.0,1256.8,0.064]
[1672879209790,0.09818434,1257.0,1256.7,56.14655483]
[1672879210005,0.035186,1257.0,1256.7,48.18934483]
[1672879210154,0.035186,1257.0,1256.7,40.23213483]
[1672879210365,0.035186,1257.0,1256.7,56.14681483]
[1672879210785,0.035186,1257.0,1256.8,7.95647]
[1672879211084,0.035186,1257.0,1256.8,13.63506448]
[1672879212492,0.035186,1257.0,1256.8,21.59177448]
[1672879215513,0.035186,1257.0,1256.8,13.63506448]
[1672879215730,0.035186,1257.0,1256.8,5.67859448]
[1672879216989,0.035186,1257.0,1256.8,13.63512448]
[1672879217619,0.035186,1257.0,1256.8,13.63300581]
[1672879218867,0.035186,1257.0,1256.8,5.67647581]
[1672879219499,0.035186,1257.0,1256.8,0.064]
[1672879219857,0.035186,1257.0,1256.7,48.18914483]
[1672879220912,0.035186,1257.0,1256.8,4.0]
[1672879221057,0.035186,1257.0,1256.8,7.95664]
[1672879221422,0.035186,1257.0,1256.8,8.02064]
[1672879221635,7.990706,1257.0,1256.8,0.064]
[1672879221808,8.05370434,1257.0,1256.7,40.23212483]
[1672879222209,0.09818434,1257.0,1256.7,48.18946483]
[1672879222419,0.035186,1257.0,1256.7,48.18946483]
[1672879223791,0.035186,1257.0,1256.8,4.0]
[1672879224002,0.035186,1257.0,1256.7,48.18946483]
[1672879224226,0.035186,1257.0,1256.7,56.14680483]
[1672879224437,0.035186,1257.0,1256.8,4.0]
[1672879224667,0.035186,1257.0,1256.7,56.14680483]
[1672879224864,0.035186,1257.0,1256.8,4.0]
[1672879225068,0.035186,1257.0,1256.7,56.14680483]
[1672879225683,0.035186,1257.0,1256.8,4.0]
[1672879225930,0.035186,1257.0,1256.7,48.18946483]
[1672879226788,0.035186,1257.0,1256.7,56.14680483]
[1672879226943,0.035186,1257.0,1256.8,4.0]
[1672879227155,0.035186,1257.0,1256.7,56.14680483]
[1672879227379,0.035186,1257.0,1256.8,4.0]
[1672879227808,0.035186,1257.0,1256.7,56.14680483]
[1672879228409,0.035186,1257.0,1256.8,4.0]
[1672879228652,0.035186,1257.0,1256.7,56.14680483]
[1672879229519,0.035186,1257.0,1256.8,4.0]
[1672879230217,0.035186,1257.0,1256.7,48.18946483]
[1672879230438,0.035186,1257.0,1256.8,4.0]
[1672879230775,0.035186,1257.0,1256.7,48.18946483]
[1672879231163,0.035186,1257.0,1256.7,40.23212483]
[1672879231357,0.035186,1257.0,1256.8,4.0]
[1672879231877,0.035186,1257.0,1256.7,40.23212483]
[1672879232087,0.035186,1257.0,1256.8,4.0]
[1672879232984,0.035186,1257.0,1256.7,40.23212483]
[1672879233579,7.990676,1257.0,1256.7,40.23212483]
[1672879233809,8.05367434,1257.0,1256.7,40.23212483]
[1672879239301,8.05367434,1257.0,1256.7,40.22983636]
[1672879240348,0.09818434,1257.0,1256.7,48.18717636]
[1672879240506,0.035186,1257.0,1256.7,48.18717636]
[1672879240872,0.035186,1257.0,1256.8,4.0]
[1672879241181,0.035186,1257.0,1256.8,5.21871764]
[1672879241400,0.035186,1257.0,1256.8,5.28271764]
[1672879248483,7.990656,1257.0,1256.8,5.28271764]
[1672879248693,8.05365434,1257.0,1256.8,5.28271764]
[1672879250925,0.09818434,1257.0,1256.8,5.28271764]
[1672879251136,0.035186,1257.0,1256.8,5.28271764]
[1672879258167,7.990666,1257.0,1256.8,5.28271764]
[1672879258365,8.05366434,1257.0,1256.8,5.28271764]
[1672879262923,8.05366434,1257.0,1256.8,5.2802307]
[1672879262924,12.05366434,1257.0,1256.8,5.2802307]
[1672879263136,8.05366434,1257.0,1256.8,5.2802307]
[1672879265008,0.09818434,1257.0,1256.8,5.2802307]
[1672879265218,0.035186,1257.0,1256.8,5.2802307]
[1672879265994,0.035186,1257.0,1256.8,13.2369307]
[1672879268182,0.035186,1257.0,1256.8,5.2802307]
[1672879268353,0.035186,1257.0,1256.8,0.064]
[1672879268722,0.035186,1257.0,1256.7,56.14397636]
[1672879269567,0.035186,1257.0,1256.8,2.0]
[1672879269726,0.035186,1257.0,1256.8,7.95666]
[1672879270087,0.035186,1257.0,1256.8,8.02066]
[1672879270301,8.01670164,1257.1,1256.8,13.63501664]
[1672879274661,15.97180164,1257.1,1256.8,5.67835664]
[1672879274868,23.92690164,1257.1,1256.8,5.67835664]
[1672879278487,0.06299834,1257.1,1256.8,5.67835664]
[1672879278699,26.13288028,1257.2,1256.8,29.54848664]
[1672879278915,32.18308028,1257.2,1256.8,29.54848664]
[1672879283710,24.22888028,1257.2,1256.8,29.54848664]
[1672879284846,0.11458028,1257.2,1256.9,3.98914951]
[1672879285097,0.05158194,1257.2,1257.0,15.91088]
[1672879285321,0.05158194,1257.2,1257.0,15.97488]
[1672879286730,0.05158194,1257.2,1257.0,8.01944]
[1672879290522,0.05158194,1257.2,1257.0,0.064]
[1672879290775,0.05158194,1257.2,1256.9,40.33254095]
[1672879293499,0.05158194,1257.2,1256.9,40.32916493]
[1672879295593,0.05158194,1257.2,1256.9,48.28524493]
[1672879299466,0.05158194,1257.2,1257.0,4.0]
[1672879299679,0.05158194,1257.2,1257.0,7.62849795]
[1672879299889,0.05158194,1257.2,1257.0,23.60290795]
[1672879300618,0.05158194,1257.2,1257.0,19.60290795]
[1672879302093,0.05158194,1257.2,1257.0,11.64752795]
[1672879304987,0.05158194,1257.2,1257.0,27.55840795]
[1672879307763,0.05158194,1257.2,1257.0,31.54755746]
[1672879310494,0.05158194,1257.2,1257.1,27.85357951]
[1672879310706,0.05158194,1257.2,1257.1,31.76934483]
[1672879312805,0.05158194,1257.2,1257.1,7.90491483]
[1672879313025,0.05158194,1257.2,1257.1,0.064]
[1672879313247,8.00576194,1257.2,1256.9,45.37150144]
[1672879313462,8.00576194,1257.2,1257.0,3.98914951]
[1672879313463,0.11458028,1257.2,1257.0,3.98914951]
[1672879313715,8.00579194,1257.2,1257.0,3.98914951]
[1672879313881,8.06879028,1257.2,1257.0,3.98914951]
[1672879314092,8.06879028,1257.2,1257.0,8.92521461]
[1672879314324,8.06879028,1257.2,1257.0,8.98921461]
[1672879314549,8.06879028,1257.2,1257.0,5.0000651]
[1672879314761,0.11458028,1257.2,1257.0,5.0000651]
[1672879314986,0.05158194,1257.2,1257.0,5.0000651]
[1672879317868,8.00581194,1257.2,1257.0,5.0000651]
[1672879318073,8.06881028,1257.2,1257.0,0.064]
[1672879318309,1.899,1257.1,1256.9,0.064]
[1672879318512,19.28381243,1257.0,1256.6,41.94091011]
[1672879318743,29.23063201,1257.0,1256.6,42.96684951]
[1672879318972,21.75538875,1257.0,1256.6,42.96684951]
[1672879319561,13.79994875,1257.0,1256.6,50.92474951]
[1672879319777,21.75538875,1257.0,1256.6,36.92474951]
[1672879319983,21.75538875,1257.0,1256.6,44.89891322]
[1672879320216,1.906,1256.8,1256.6,24.9777]
[1672879320425,23.87202,1256.7,1256.6,24.9777]
[1672879320763,15.97767834,1256.7,1256.6,24.9777]
[1672879320955,23.93501834,1256.7,1256.6,0.064]
[1672879321280,23.93501834,1256.7,1256.4,3.09011451]
[1672879321496,23.93501834,1256.7,1256.4,11.71015893]
[1672879321710,23.93501834,1256.7,1256.4,11.77415893]
[1672879322390,15.97767834,1256.7,1256.4,11.77415893]
[1672879323172,8.02033834,1256.7,1256.4,11.77415893]
[1672879323613,8.02033834,1256.7,1256.4,11.77137635]
[1672879324124,8.02033834,1256.7,1256.4,19.73056635]
[1672879324482,18.35687508,1256.7,1256.4,0.18772872]
[1672879324698,26.31421508,1256.7,1256.4,0.12372872]
[1672879325074,18.35687508,1256.7,1256.4,0.12372872]
[1672879325226,22.01163259,1256.7,1256.4,0.12372872]
[1672879325679,1.906,1256.6,1256.4,0.12372872]
[1672879325853,9.864,1256.6,1256.4,0.12372872]
[1672879326064,9.92699834,1256.6,1256.4,0.12372872]
[1672879326480,17.88499834,1256.6,1256.4,0.12372872]
[1672879326756,29.2407276,1256.6,1256.4,0.12372872]
[1672879328856,21.2827276,1256.6,1256.4,0.12372872]
[1672879331212,13.3247276,1256.6,1256.4,0.12372872]
[1672879332280,5.3667276,1256.6,1256.4,0.12372872]
[1672879333478,13.3248176,1256.6,1256.4,0.12372872]
[1672879334267,13.9220176,1256.6,1256.4,0.12372872]
[1672879334924,21.8801076,1256.6,1256.4,0.12372872]
[1672879335113,13.9220176,1256.6,1256.4,0.12372872]
[1672879336383,13.9219476,1256.6,1256.4,0.12372872]
[1672879337951,14.40214434,1256.6,1256.4,0.12372872]
[1672879338389,18.40214434,1256.6,1256.4,0.12372872]
[1672879338601,1.906,1256.5,1256.4,0.12372872]
[1672879338814,3.14101243,1256.5,1256.4,0.12372872]
[1672879339809,8.14101243,1256.5,1256.4,0.12372872]
[1672879340022,8.20401077,1256.5,1256.4,0.12372872]
[1672879344269,16.16262077,1256.5,1256.4,0.12372872]
[1672879344479,16.64281751,1256.5,1256.4,0.12372872]
[1672879345254,19.64281751,1256.5,1256.4,0.12372872]
[1672879345463,27.60142751,1256.5,1256.4,0.12372872]
[1672879345697,19.64281751,1256.5,1256.4,0.12372872]
[1672879345867,27.60142751,1256.5,1256.4,0.12372872]
[1672879347110,27.60142751,1256.5,1256.4,0.12112053]
[1672879347951,19.64281751,1256.5,1256.4,0.12112053]
[1672879348847,19.63081751,1256.5,1256.4,0.12112053]
[1672879350848,27.58942751,1256.5,1256.4,0.12112053]
[1672879351052,19.63081751,1256.5,1256.4,0.12112053]
[1672879351907,35.54803751,1256.5,1256.4,0.12112053]
[1672879352214,27.58942751,1256.5,1256.4,0.12112053]
[1672879352793,19.63081751,1256.5,1256.4,0.12112053]
[1672879355741,27.58942751,1256.5,1256.4,0.12112053]
[1672879357048,35.54803751,1256.5,1256.4,0.12112053]
[1672879357888,27.58942751,1256.5,1256.4,0.12112053]
[1672879366935,22.58942751,1256.5,1256.4,0.12112053]
[1672879368098,27.58942751,1256.5,1256.4,0.12112053]
[1672879368427,42.65179224,1256.5,1256.1,0.13978531]
[1672879368759,42.65179224,1256.5,1256.2,0.064]
[1672879368760,23.87964,1256.3,1256.2,0.064]
[1672879368900,40.59849146,1256.3,1256.2,0.064]
[1672879369103,46.0786882,1256.3,1256.2,0.064]
[1672879369373,4.0,1256.2,1256.1,0.10378531]
[1672879369571,14.96051,1256.2,1256.1,0.10378531]
[1672879369783,15.50370508,1256.2,1256.1,0.10378531]
[1672879370058,33.4721469,1256.2,1256.1,0.10378531]
[1672879370807,41.4326569,1256.2,1256.1,0.10378531]
[1672879371166,37.4326569,1256.2,1256.1,0.10378531]
[1672879374677,29.4721469,1256.2,1256.1,0.10378531]
[1672879377157,24.4721469,1256.2,1256.1,0.10378531]
[1672879378053,16.5116369,1256.2,1256.1,0.10378531]
[1672879378370,32.42472508,1256.2,1256.1,0.10378531]
[1672879380676,24.46421508,1256.2,1256.1,0.10378531]
[1672879385396,32.42472508,1256.2,1256.1,0.10378531]
[1672879386678,24.46421508,1256.2,1256.1,0.10378531]
[1672879387306,32.42472508,1256.2,1256.1,0.10378531]
[1672879387472,37.4287709,1256.2,1256.1,0.10378531]
[1672879388300,38.0261709,1256.2,1256.1,0.10378531]
[1672879388509,30.0656609,1256.2,1256.1,0.10378531]
[1672879391192,37.4287709,1256.2,1256.1,0.10378531]
[1672879391408,37.4287709,1256.2,1256.1,0.1008672]
[1672879393350,29.4682609,1256.2,1256.1,0.1008672]
[1672879394226,37.4287709,1256.2,1256.1,0.1008672]
[1672879395391,45.22692041,1256.2,1256.1,0.1008672]
[1672879395817,49.39286698,1256.2,1256.1,0.1008672]
[1672879396133,45.45692041,1256.2,1256.1,0.1008672]
[1672879396727,46.05432041,1256.2,1256.1,0.1008672]
[1672879405971,50.22026698,1256.2,1256.1,0.1008672]
[1672879406201,46.05432041,1256.2,1256.1,0.1008672]
[1672879406376,50.22026698,1256.2,1256.1,0.1008672]
[1672879406584,46.05432041,1256.2,1256.1,0.1008672]
[1672879407068,46.05432041,1256.2,1256.0,0.066]
[1672879407069,4.0,1256.1,1256.0,0.066]
[1672879407221,52.17975828,1256.1,1255.9,0.17297977]
[1672879407422,6.12714951,1256.0,1255.9,0.17297977]
[1672879407699,33.55568459,1256.0,1255.9,0.17297977]
[1672879408378,33.55568459,1256.0,1255.9,0.00097977]
[1672879408379,51.29434666,1256.0,1255.9,0.00097977]
[1672879408567,53.30942402,1256.0,1255.9,0.00097977]
[1672879410807,51.40142402,1256.0,1255.9,0.00097977]
[1672879411176,47.23976195,1256.0,1255.9,0.00097977]
[1672879412449,47.6318559,1256.0,1255.9,0.00097977]
[1672879413855,42.0353559,1256.0,1255.9,0.00097977]
[1672879414027,34.0735759,1256.0,1255.9,0.00097977]
[1672879414241,42.0353559,1256.0,1255.9,0.00097977]
[1672879414593,28.77348195,1256.0,1255.9,0.00097977]
[1672879415690,31.77348195,1256.0,1255.9,0.00097977]
[1672879415963,31.29328521,1256.0,1255.9,0.00097977]
[1672879416111,37.35506521,1256.0,1255.9,0.00097977]
[1672879418108,37.83526195,1256.0,1255.9,0.00097977]
[1672879420038,29.87348195,1256.0,1255.9,0.00097977]
[1672879420284,38.43276195,1256.0,1255.9,0.00097977]
[1672879423250,37.83526195,1256.0,1255.9,0.00097977]
[1672879423373,37.84690371,1256.0,1255.9,0.00097977]
[1672879423903,13.96156371,1256.0,1255.9,0.00097977]
[1672879424115,11.83378961,1256.0,1255.9,0.00097977]
[1672879424568,19.79556961,1256.0,1255.9,0.00097977]
[1672879424894,11.83378961,1256.0,1255.9,0.00097977]
[1672879425606,19.79556961,1256.0,1255.9,0.00097977]
[1672879426833,11.83378961,1256.0,1255.9,0.00097977]
[1672879427375,27.75734961,1256.0,1255.9,0.00097977]
[1672879428461,8.06299834,1256.0,1255.9,0.00097977]
[1672879429003,16.02477834,1256.0,1255.9,0.00097977]
[1672879429835,23.98655834,1256.0,1255.9,0.00097977]
[1672879431678,42.11484297,1256.0,1255.9,0.00097977]
[1672879431887,42.34484297,1256.0,1255.9,0.00097977]
[1672879432212,18.45950297,1256.0,1255.9,0.00097977]
[1672879432373,34.15306297,1256.0,1255.9,0.00097977]
[1672879432743,42.11484297,1256.0,1255.9,0.00097977]
[1672879434347,42.11128158,1256.0,1255.9,0.00097977]
[1672879434563,42.11328158,1256.0,1255.9,0.00097977]
[1672879435435,34.15150158,1256.0,1255.9,0.00097977]
[1672879437715,29.15150158,1256.0,1255.9,0.00097977]
[1672879437985,37.11328158,1256.0,1255.9,0.00097977]
[1672879438925,42.11328158,1256.0,1255.9,0.00097977]
[1672879440900,34.15150158,1256.0,1255.9,0.00097977]
[1672879444912,29.15150158,1256.0,1255.9,0.00097977]
[1672879445122,33.31316365,1256.0,1255.9,0.00097977]
[1672879445289,41.27494365,1256.0,1255.9,0.00097977]
[1672879445562,46.27494365,1256.0,1255.9,0.00097977]
[1672879445968,46.50494365,1256.0,1255.9,0.00097977]
[1672879447347,46.50494365,1256.0,1255.9,0.07825977]
[1672879447680,46.50494365,1256.0,1255.8,0.17517537]
[1672879447854,16.15627497,1255.9,1255.8,0.17517537]
[1672879448065,45.02309121,1255.9,1255.8,0.17517537]
[1672879448328,45.50328795,1255.9,1255.8,0.17517537]
[1672879448705,45.73328795,1255.9,1255.8,0.17517537]
[1672879453317,52.40528795,1255.9,1255.8,0.17517537]
[1672879456511,53.00288795,1255.9,1255.8,0.17517537]
[1672879457968,52.40528795,1255.9,1255.8,0.17517537]
[1672879463538,47.63628795,1255.9,1255.8,0.17517537]
[1672879465842,42.63628795,1255.9,1255.8,0.17517537]
[1672879466204,47.63628795,1255.9,1255.8,0.17517537]
[1672879467927,47.63628795,1255.9,1255.8,0.17200587]
[1672879468518,19.52990844,1255.9,1255.8,0.17200587]
[1672879468791,8.06143695,1255.9,1255.8,0.17200587]
[1672879478000,31.94866695,1255.9,1255.8,0.17200587]
[1672879478854,31.94470379,1255.9,1255.8,0.17200587]
[1672879479674,23.98229379,1255.9,1255.8,0.17200587]
[1672879480583,31.94470379,1255.9,1255.8,0.17200587]
[1672879482405,23.98229379,1255.9,1255.8,0.17200587]
[1672879483831,31.94470379,1255.9,1255.8,0.17200587]
[1672879484404,8.05747379,1255.9,1255.8,0.17200587]
[1672879484741,23.98229379,1255.9,1255.8,0.17200587]
[1672879484930,31.94470379,1255.9,1255.8,0.17200587]
[1672879485472,26.94470379,1255.9,1255.8,0.17200587]
[1672879486339,18.98229379,1255.9,1255.8,0.17200587]
[1672879486549,23.98229379,1255.9,1255.8,0.17200587]
[1672879486773,24.21229379,1255.9,1255.8,0.17200587]
[1672879487668,28.37941925,1255.9,1255.8,0.17200587]
[1672879488097,24.21229379,1255.9,1255.8,0.17200587]
[1672879491836,8.05747379,1255.9,1255.8,0.17200587]
[1672879492641,3.05747379,1255.9,1255.8,0.17200587]
[1672879492845,2.99603684,1255.9,1255.8,0.17200587]
[1672879493107,7.99603684,1255.9,1255.8,0.17200587]
[1672879493347,8.05747379,1255.9,1255.8,0.17200587]
[1672879500286,8.05747379,1255.9,1255.8,0.1690677]
[1672879500440,12.05747379,1255.9,1255.8,0.1690677]
[1672879500920,32.14941925,1255.9,1255.8,0.1690677]
[1672879501090,40.11182925,1255.9,1255.8,0.1690677]
[1672879501288,36.11182925,1255.9,1255.8,0.1690677]
[1672879501997,20.18700925,1255.9,1255.8,0.1690677]
[1672879502164,12.22459925,1255.9,1255.8,0.1690677]
[1672879503305,20.18700925,1255.9,1255.8,0.1690677]
[1672879503512,12.22459925,1255.9,1255.8,0.1690677]
[1672879503741,36.11182925,1255.9,1255.8,0.1690677]
[1672879503951,28.14941925,1255.9,1255.8,0.1690677]
[1672879504177,20.18700925,1255.9,1255.8,0.1690677]
[1672879504698,24.18700925,1255.9,1255.8,0.1690677]
[1672879504919,42.24882925,1255.9,1255.8,0.1690677]
[1672879505086,42.24942013,1255.9,1255.8,0.1690677]
[1672879505276,38.24942013,1255.9,1255.8,0.1690677]
[1672879508481,34.08170379,1255.9,1255.8,0.1690677]
[1672879508699,38.25003075,1255.9,1255.8,0.1690677]
[1672879510694,34.08170379,1255.9,1255.8,0.1690677]
[1672879511215,38.24939901,1255.9,1255.8,0.1690677]
[1672879511807,39.01455351,1255.9,1255.8,0.1690677]
[1672879512266,34.08170379,1255.9,1255.8,0.1690677]
[1672879512490,39.01455351,1255.9,1255.8,0.1690677]
[1672879513087,34.08170379,1255.9,1255.8,0.1690677]
[1672879513527,39.01455351,1255.9,1255.8,0.1690677]
[1672879515421,39.49475025,1255.9,1255.8,0.1690677]
[1672879515779,44.86135025,1255.9,1255.8,0.1690677]
[1672879518652,44.38115351,1255.9,1255.8,0.1690677]
[1672879519286,44.37824051,1255.9,1255.8,0.1690677]
[1672879521678,43.78064051,1255.9,1255.8,0.1690677]
[1672879528545,43.77064051,1255.9,1255.8,0.1690677]
[1672879533884,25.87638079,1255.9,1255.8,0.1690677]
[1672879534096,25.14758294,1255.9,1255.8,0.1690677]
[1672879535056,28.94866695,1255.9,1255.8,0.1690677]
[1672879535376,33.88151667,1255.9,1255.8,0.1690677]
[1672879535540,37.11151667,1255.9,1255.8,0.1690677]
[1672879537134,43.79051667,1255.9,1255.8,0.1690677]
[1672879537347,44.38811667,1255.9,1255.8,0.1690677]
[1672879540516,43.79051667,1255.9,1255.8,0.1690677]
[1672879543148,38.85766695,1255.9,1255.8,0.1690677]
[1672879543361,43.77737665,1255.9,1255.8,0.1690677]
[1672879543673,38.85766695,1255.9,1255.8,0.16681656]
[1672879544278,43.77852297,1255.9,1255.8,0.16681656]
[1672879544487,38.85766695,1255.9,1255.8,0.16681656]
[1672879544678,43.77851275,1255.9,1255.8,0.16681656]
[1672879545438,38.85766695,1255.9,1255.8,0.16681656]
[1672879545615,47.15461857,1255.9,1255.8,0.16681656]
[1672879546981,47.75221857,1255.9,1255.8,0.16681656]
[1672879549241,47.75221857,1255.9,1255.7,0.19704958]
[1672879549552,44.69015,1255.8,1255.7,0.19704958]
[1672879549871,44.75158695,1255.8,1255.7,0.19704958]
[1672879550091,4.16637469,1255.9,1255.7,8.19704958]
[1672879550230,0.004,1256.0,1255.8,20.14161758]
[1672879550442,0.066,1256.4,1256.0,8.36]
[1672879550675,0.05268438,1256.6,1256.1,54.78463]
[1672879551078,0.05268438,1256.6,1256.3,23.87925]
[1672879551251,0.05268438,1256.6,1256.3,23.88525]
[1672879551419,0.05268438,1256.6,1256.4,4.0]
[1672879551634,0.05268438,1256.6,1256.4,19.918]
[1672879551851,0.05268438,1256.6,1256.4,15.984]
[1672879555605,0.05268438,1256.6,1256.4,23.94324]
[1672879555815,0.05268438,1256.6,1256.4,15.984]
[1672879556904,0.05268438,1256.6,1256.4,23.94324]
[1672879559026,0.05268438,1256.6,1256.4,15.984]
[1672879560333,0.05268438,1256.6,1256.4,23.94324]
[1672879560753,0.05268438,1256.6,1256.4,15.984]
[1672879561497,0.05268438,1256.6,1256.4,23.94324]
[1672879562277,0.05268438,1256.6,1256.4,15.984]
[1672879562599,0.05268438,1256.6,1256.5,9.44912685]
[1672879562755,0.05268438,1256.6,1256.5,9.51512685]
[1672879563216,0.05268438,1256.6,1256.5,17.47373685]
[1672879563597,0.05268438,1256.6,1256.5,25.43234685]
[1672879564008,4.38e-06,1256.6,1256.5,43.83937997]
[1672879564238,0.05811633,1256.8,1256.7,31.82936]
[1672879564542,0.05811633,1256.8,1256.7,31.90987454]
[1672879564905,0.05811633,1256.8,1256.7,23.95253454]
[1672879566420,0.05811633,1256.8,1256.7,8.03785454]
[1672879566638,15.97153633,1256.8,1256.7,0.066]
[1672879566907,8.08082633,1256.8,1256.5,7.95861]
[1672879567112,8.08082633,1256.8,1256.5,8.02461]
[1672879568692,0.12411633,1256.8,1256.5,8.02461]
[1672879569007,0.05811633,1256.8,1256.5,8.02461]
[1672879569153,23.92840633,1256.8,1256.5,0.066]
[1672879569489,23.99440633,1256.8,1256.3,0.066]
[1672879569690,22.91543,1256.7,1256.3,7.95984]
[1672879569900,22.98143,1256.7,1256.3,15.98572]
[1672879570168,7.066,1256.7,1256.3,23.9456]
[1672879571054,15.02339,1256.7,1256.3,23.9456]
[1672879571891,4.0,1256.6,1256.3,0.066]
[1672879572103,4.0,1256.6,1256.2,50.98613]
[1672879572369,4.0,1256.6,1256.2,58.94633]
[1672879572735,11.95798,1256.6,1256.2,58.89633]
[1672879573110,12.02398,1256.6,1256.2,58.89633]
[1672879574351,12.02398,1256.6,1256.2,50.93613]
[1672879574586,3.0,1256.5,1256.2,0.066]
[1672879574734,23.87772,1256.4,1256.0,0.07]
[1672879575105,23.87772,1256.4,1256.0,0.004]
[1672879575106,11.96009,1256.3,1256.0,0.004]
[1672879575262,12.02609,1256.3,1256.0,0.004]
[1672879575468,27.94606,1256.3,1256.0,0.004]
[1672879580775,4.066,1256.3,1256.0,0.004]
[1672879580940,0.066,1256.4,1256.0,23.88921]
[1672879581329,3.0,1256.5,1256.0,23.88921]
[1672879581330,10.95864,1256.5,1256.0,37.95521]
[1672879581550,11.02464,1256.5,1256.0,37.95521]
[1672879581697,27.53919,1256.5,1256.0,22.03165]
[1672879582072,7.96,1256.3,1256.0,22.03165]
[1672879582286,15.986,1256.3,1256.0,14.07]
[1672879582438,8.026,1256.3,1256.0,22.03159]
[1672879582915,15.98588,1256.3,1256.0,14.07]
[1672879583103,8.02588,1256.3,1256.0,14.07]
[1672879583284,8.02588,1256.3,1256.0,22.03178]
[1672879585056,8.02588,1256.3,1256.0,29.99356]
[1672879585057,0.066,1256.3,1256.0,29.99356]
[1672879585188,19.98508,1256.4,1256.0,29.99356]
[1672879585377,27.94475,1256.4,1256.0,14.07]
[1672879585588,27.94475,1256.4,1256.0,0.07]
[1672879585839,27.94475,1256.4,1256.0,0.004]
[1672879587274,28.54205,1256.4,1256.0,0.004]
[1672879587816,28.54205,1256.4,1256.0,7.96574]
[1672879588043,28.54205,1256.4,1256.0,8.03174]
[1672879591493,16.58238,1256.4,1256.0,8.03174]
[1672879591703,0.6633,1256.4,1256.0,23.9553]
[1672879591928,0.5973,1256.4,1256.0,23.9553]
[1672879592781,8.5566,1256.4,1256.0,23.95295274]
[1672879592989,16.5819,1256.4,1256.0,15.99117274]
[1672879594526,8.6226,1256.4,1256.0,23.95295274]
[1672879595213,0.6633,1256.4,1256.0,23.95295274]
[1672879595367,0.5973,1256.4,1256.0,23.95295274]
[1672879597061,0.5993,1256.4,1256.0,23.95095274]
[1672879597397,8.55662,1256.4,1256.0,23.95295274]
[1672879597593,8.62262,1256.4,1256.0,23.95295274]
[1672879598275,0.6633,1256.4,1256.0,23.95295274]
[1672879598445,0.5973,1256.4,1256.0,23.95295274]
[1672879599090,27.53987,1256.5,1256.0,23.95295274]
[1672879600535,4.0,1256.4,1256.0,8.02939274]
[1672879600745,19.91929,1256.4,1256.0,8.02939274]
[1672879600996,19.98529,1256.4,1256.0,8.02939274]
[1672879601400,30.62639,1256.4,1256.0,15.99117274]
[1672879602160,31.22369,1256.4,1256.0,15.99117274]
[1672879602757,42.59689,1256.4,1256.0,15.99117274]
[1672879603535,50.55671,1256.4,1256.0,8.02939274]
[1672879604580,50.55671,1256.4,1256.0,0.06765274]
[1672879604794,23.88342,1256.1,1256.0,0.00165274]
[1672879604941,24.54692,1256.1,1256.0,0.00165274]
[1672879605149,27.54692,1256.1,1256.0,0.00165274]
[1672879605407,29.06292,1256.1,1256.0,0.00165274]
[1672879605612,51.13222,1256.1,1256.0,0.00165274]
[1672879605943,25.7328,1256.1,1256.0,0.00165274]
[1672879606152,33.69394,1256.1,1256.0,0.00165274]
[1672879606519,41.65508,1256.1,1256.0,0.00165274]
[1672879607103,49.61622,1256.1,1256.0,0.00165274]
[1672879607272,41.65508,1256.1,1256.0,0.00165274]
[1672879607713,49.61622,1256.1,1256.0,0.00165274]
[1672879607934,33.69394,1256.1,1256.0,0.00165274]
[1672879608259,41.65508,1256.1,1256.0,0.00165274]
[1672879608869,0.066,1256.1,1256.0,9.43943274]
[1672879609224,22.1163,1256.3,1256.0,1.54365274]
[1672879609396,30.14233,1256.3,1256.0,1.47765274]
[1672879609762,38.10253,1256.3,1256.0,1.47765274]
[1672879613436,4.0,1256.2,1256.0,0.00165274]
[1672879613647,7.96114,1256.1,1256.0,0.00165274]
[1672879613798,0.066,1256.1,1256.0,0.00165274]
[1672879614007,9.43714,1256.1,1256.0,0.00165274]
[1672879614274,9.50314,1256.1,1256.0,0.00165274]
[1672879614484,17.46428,1256.1,1256.0,10.00165274]
[1672879614798,17.46428,1256.1,1256.0,10.0637858]
[1672879615811,0.066,1256.1,1256.0,10.0637858]
[1672879616027,7.96114,1256.1,1256.0,10.0637858]
[1672879616214,8.02714,1256.1,1256.0,10.0637858]
[1672879618646,23.94942,1256.1,1256.0,10.0637858]
[1672879618845,27.54692,1256.1,1256.0,10.0637858]
[1672879619057,30.94942,1256.1,1256.0,10.0637858]
[1672879620773,26.94942,1256.1,1256.0,10.0637858]
[1672879622368,30.94942,1256.1,1256.0,10.0637858]
[1672879622971,26.94942,1256.1,1256.0,10.0637858]
[1672879624624,28.46542,1256.1,1256.0,10.0637858]
[1672879624959,32.46542,1256.1,1256.0,10.0637858]
[1672879628997,37.46542,1256.1,1256.0,10.0637858]
[1672879629637,9.1646742,1256.0,1255.9,0.12151726]
[1672879629807,9.1646742,1256.0,1255.9,7.26e-06]
[1672879629808,39.9715142,1256.0,1255.9,7.26e-06]
[1672879630022,56.6016142,1256.0,1255.9,7.26e-06]
[1672879630368,57.08181094,1256.0,1255.9,7.26e-06]
[1672879630946,62.08181094,1256.0,1255.9,7.26e-06]
[1672879631577,72.83181094,1256.0,1255.9,7.26e-06]